bitfinex/quotes_SOLUSD_20240705
["timestamp","ask_amount","ask_price","bid_price","bid_amount"]
[1720145091106,9.30314711,128.32,128.3,8.09e-05]
[1720145091433,31.56,128.34,128.3,8.09e-05]
[1720145091717,9.305502,128.33,128.3,8.09e-05]
[1720145091925,147.45185451,128.36,128.3,8.09e-05]
[1720145092127,9.30935481,128.35,128.3,8.09e-05]
[1720145092329,9.30935481,128.34,128.3,8.09e-05]
[1720145092502,9.30935481,128.35,128.3,8.09e-05]
[1720145094120,139.3506,128.36,128.3,8.09e-05]
[1720145094420,9.30608584,128.35,128.3,8.09e-05]
[1720145095729,7.7918,128.34,128.3,8.09e-05]
[1720145095922,9.30608584,128.33,128.3,8.09e-05]
[1720145096110,7.7912,128.35,128.3,8.09e-05]
[1720145096303,9.29831658,128.34,128.3,8.09e-05]
[1720145096619,147.45403413,128.36,128.3,8.09e-05]
[1720145096832,9.29913912,128.35,128.3,8.09e-05]
[1720145097124,147.45403413,128.36,128.3,8.09e-05]
[1720145097333,9.29906188,128.34,128.3,8.09e-05]
[1720145097509,7.7918,128.34,128.3,8.09e-05]
[1720145098416,9.29843605,128.33,128.3,8.09e-05]
[1720145098616,7.7918,128.34,128.3,8.09e-05]
[1720145098821,9.29608762,128.33,128.3,8.09e-05]
[1720145099131,7.7918,128.34,128.3,8.09e-05]
[1720145099132,7.7931,128.32,128.3,8.09e-05]
[1720145099626,39.3523,128.34,128.3,8.09e-05]
[1720145099835,9.29629619,128.33,128.3,8.09e-05]
[1720145100014,39.3523,128.34,128.3,8.09e-05]
[1720145100417,9.29892797,128.33,128.3,8.09e-05]
[1720145100629,139.3523,128.34,128.3,8.09e-05]
[1720145100825,9.3027962,128.33,128.3,8.09e-05]
[1720145101026,7.793,128.32,128.3,8.09e-05]
[1720145101528,107.793,128.32,128.3,8.09e-05]
[1720145101735,7.7926,128.33,128.3,8.09e-05]
[1720145101930,9.29654169,128.32,128.3,8.09e-05]
[1720145102137,139.3518,128.34,128.3,8.09e-05]
[1720145102435,100.0,128.32,128.3,8.09e-05]
[1720145102854,107.793,128.32,128.3,8.09e-05]
[1720145103244,7.793,128.32,128.3,8.09e-05]
[1720145103623,107.793,128.32,128.3,8.09e-05]
[1720145104155,7.7936,128.31,128.3,8.09e-05]
[1720145104437,139.3532,128.32,128.3,8.09e-05]
[1720145104641,7.7936,128.31,128.3,8.09e-05]
[1720145104835,9.27949718,128.31,128.3,8.09e-05]
[1720145105029,17.07309718,128.31,128.3,8.09e-05]
[1720145105736,17.0680304,128.31,128.3,8.09e-05]
[1720145105934,7.7936,128.31,128.3,8.09e-05]
[1720145106434,17.06679427,128.31,128.3,8.09e-05]
[1720145106845,9.27319427,128.31,128.3,8.09e-05]
[1720145107021,17.06463516,128.31,128.3,8.09e-05]
[1720145107430,9.2713445,128.31,128.3,8.09e-05]
[1720145107727,139.3509,128.36,128.3,8.09e-05]
[1720145108041,9.28198633,128.35,128.3,15.5889809]
[1720145108239,117.07418633,128.34,128.3,15.5889809]
[1720145108430,17.07182138,128.33,128.3,15.5889809]
[1720145108626,31.56,128.34,128.3,15.5889809]
[1720145108827,9.27753446,128.33,128.3,15.5889809]
[1720145109037,31.56,128.34,128.3,15.5889809]
[1720145109342,39.3512,128.35,128.3,15.5889809]
[1720145109722,9.27136344,128.34,128.3,15.5889809]
[1720145110046,31.56,128.35,128.3,15.5889809]
[1720145110349,9.26854809,128.34,128.3,15.5889809]
[1720145110642,39.3512,128.35,128.3,15.5889809]
[1720145110840,9.27016266,128.34,128.3,15.5889809]
[1720145111043,7.7918,128.34,128.3,15.5889809]
[1720145111343,9.27381301,128.33,128.3,15.5889809]
[1720145111545,39.3513,128.35,128.3,15.5889809]
[1720145111926,9.27090965,128.34,128.3,15.5889809]
[1720145112127,9.26986285,128.33,128.3,15.5889809]
[1720145112325,100.0,128.31,128.3,8.09e-05]
[1720145112529,148.61411144,128.31,128.3,8.09e-05]
[1720145113820,193.61411144,128.31,128.3,8.09e-05]
[1720145114840,184.3536,128.31,128.3,8.09e-05]
[1720145115151,193.59935306,128.31,128.3,8.09e-05]
[1720145115848,148.59935306,128.31,128.3,8.09e-05]
[1720145117862,248.59935306,128.31,128.3,8.09e-05]
[1720145118152,7.7969,128.26,128.22,16.2294]
[1720145118350,100.0,128.25,128.21,6.3481]
[1720145118556,7.798,128.24,128.21,6.3481]
[1720145118954,100.0,128.23,128.21,0.1]
[1720145119452,7.799,128.22,128.21,0.1]
[1720145119676,31.56,128.24,128.21,0.1]
[1720145119963,7.7989,128.23,128.21,0.1]
[1720145120461,39.3579,128.24,128.21,0.1]
[1720145120634,31.56,128.24,128.21,0.1]
[1720145120834,39.3579,128.24,128.21,0.1]
[1720145121172,7.799,128.22,128.21,0.1]
[1720145123365,39.359,128.22,128.21,0.1]
[1720145125835,100.0,128.26,128.21,0.1]
[1720145126033,131.56,128.27,128.21,0.1]
[1720145126258,39.3561,128.27,128.21,0.1]
[1720145126770,31.56,128.27,128.21,0.1]
[1720145126976,100.0,128.29,128.21,0.1]
[1720145127152,131.56,128.29,128.22,22.0469]
[1720145127347,39.3548,128.29,128.22,22.0469]
[1720145127574,7.7956,128.28,128.22,22.0469]
[1720145127956,31.56,128.29,128.23,7.7983]
[1720145128161,31.56,128.29,128.22,29.8458]
[1720145128469,31.56,128.29,128.22,22.0469]
[1720145129268,7.7947,128.3,128.22,22.0469]
[1720145129566,39.3547,128.3,128.22,22.0469]
[1720145129773,7.7949,128.29,128.22,22.0469]
[1720145129979,31.56,128.3,128.22,22.0469]
[1720145130164,7.7955,128.28,128.22,22.0469]
[1720145130568,8.09659939,128.31,128.22,68.9669]
[1720145130865,8.09659939,128.31,128.24,54.7178]
[1720145131065,39.3528,128.33,128.24,54.7178]
[1720145131270,31.56,128.33,128.25,54.7171]
[1720145131458,31.56,128.33,128.27,16.327]
[1720145132077,31.56,128.34,128.27,16.327]
[1720145132261,39.3518,128.34,128.27,16.327]
[1720145133673,7.7912,128.35,128.27,16.327]
[1720145133876,31.56,128.34,128.27,16.327]
[1720145134255,31.56,128.32,128.27,16.327]
[1720145135582,31.56,128.34,128.27,24.1229]
[1720145135975,15.88234112,128.36,128.27,71.0429]
[1720145136280,15.88234112,128.36,128.21,0.0001]
[1720145136281,107.799,128.22,128.21,0.0001]
[1720145136458,107.8015,128.18,128.17,0.8286809]
[1720145136660,100.0,128.16,128.11,0.1]
[1720145136862,7.8025,128.17,128.11,0.1]
[1720145136863,31.56,128.15,128.11,0.1]
[1720145137171,45.62938646,128.23,128.11,0.1]
[1720145137172,100.0,128.26,128.12,6.0525]
[1720145137372,31.56,128.23,128.12,6.0525]
[1720145137674,11.70250195,128.18,128.12,6.0525]
[1720145138190,11.70250195,128.17,128.12,6.0525]
[1720145138695,11.70250195,128.16,128.12,6.0525]
[1720145139075,11.70250195,128.16,128.11,0.1]
[1720145139264,11.70250195,128.12,128.11,0.1]
[1720145139460,11.70250195,128.13,128.11,0.1]
[1720145139658,155.0908,128.2,128.11,0.1]
[1720145139659,11.70250195,128.12,128.11,0.1]
[1720145140192,11.70316471,128.12,128.11,0.1]
[1720145140567,11.70316471,128.13,128.12,7.8051]
[1720145140782,11.70316471,128.16,128.12,7.8051]
[1720145141376,11.70316471,128.16,128.11,27.4199]
[1720145141983,11.70316471,128.15,128.11,0.1]
[1720145142171,11.70316471,128.15,128.14,7.8039]
[1720145142373,11.70316471,128.16,128.13,7.8045]
[1720145142571,11.70316471,128.18,128.13,7.8045]
[1720145142772,11.70316471,128.17,128.13,7.8045]
[1720145143070,107.7979,128.24,128.14,7.8037]
[1720145143277,11.71033154,128.18,128.14,7.8037]
[1720145143593,11.71019638,128.18,128.11,19.6129]
[1720145144483,11.71019638,128.18,128.12,7.8051]
[1720145144688,11.71019638,128.17,128.12,7.8051]
[1720145144988,7.7991,128.22,128.12,7.8051]
[1720145145179,11.71019638,128.21,128.16,6.0511]
[1720145145372,100.0,128.29,128.16,6.0511]
[1720145145373,11.71019638,128.22,128.16,6.0511]
[1720145145572,11.71019638,128.22,128.18,27.3038]
[1720145145889,11.71019638,128.23,128.2,19.4998]
[1720145146186,100.0,128.29,128.17,19.5048]
[1720145146187,11.71668526,128.24,128.17,19.5048]
[1720145146374,11.71668526,128.23,128.17,66.4248]
[1720145146568,11.71668526,128.23,128.17,74.2263]
[1720145146887,11.71668526,128.23,128.18,54.7213]
[1720145147103,11.71668526,128.23,128.18,46.92]
[1720145147465,11.71668526,128.22,128.17,74.2264]
[1720145148283,11.71668526,128.23,128.18,7.8014]
[1720145148486,11.71668526,128.23,128.19,46.92]
[1720145148692,11.71668526,128.23,128.21,7.7993]
[1720145148867,7.8051,128.12,128.04,0.8286809]
[1720145149079,100.0,128.09,128.04,0.8286809]
[1720145149280,11.71028882,128.07,128.04,0.8286809]
[1720145149586,11.71028882,128.1,128.04,0.8286809]
[1720145149785,11.71028882,128.13,128.05,1.56095978]
[1720145150095,11.71028882,128.13,128.07,19.5205]
[1720145150279,11.71028882,128.12,128.04,0.8286809]
[1720145150588,100.0,128.18,128.05,7.8088]
[1720145150589,11.71028882,128.13,128.05,7.8088]
[1720145150774,11.71028882,128.12,128.05,7.8088]
[1720145151181,11.71028882,128.11,128.04,0.8286809]
[1720145151775,11.71028882,128.09,128.04,0.8286809]
[1720145152192,7.8046,128.13,128.04,0.8286809]
[1720145152382,19.52678955,128.11,128.04,0.8286809]
[1720145152599,11.72058955,128.1,128.04,0.8286809]
[1720145153096,11.72058955,128.11,128.04,0.8286809]
[1720145153992,11.72058955,128.1,128.04,0.8286809]
[1720145154607,74.5995,128.18,128.01,51.2108]
[1720145154608,100.0,128.02,128.01,0.1]
[1720145154834,107.8112,128.02,128.01,0.1]
[1720145155105,107.8112,128.02,127.92,0.8286809]
[1720145155106,7.8143,127.97,127.92,0.8286809]
[1720145155475,7.8145,127.97,127.92,0.8286809]
[1720145155681,107.8137,127.98,127.92,0.8286809]
[1720145156010,7.8146,127.97,127.92,0.8286809]
[1720145156197,100.0,127.98,127.92,0.8286809]
[1720145156500,135.59,128.0,127.92,0.8286809]
[1720145157120,100.0,127.95,127.92,0.8286809]
[1720145157407,7.8164,127.94,127.92,0.8286809]
[1720145157907,107.8156,127.95,127.92,0.8286809]
[1720145158085,7.8143,127.98,127.92,0.8286809]
[1720145158285,100.0,127.97,127.92,0.8286809]
[1720145158508,7.8151,127.96,127.92,0.8286809]
[1720145158880,100.0,127.97,127.92,0.8286809]
[1720145158881,107.8144,127.97,127.92,0.8286809]
[1720145159400,115.9324798,127.97,127.92,0.8286809]
[1720145159600,8.1180798,127.97,127.92,0.8286809]
[1720145159910,7.8137,127.98,127.92,0.8286809]
[1720145160479,7.8144,127.97,127.92,0.8286809]
[1720145160702,107.8144,127.97,127.92,0.8286809]
[1720145161783,100.0,127.97,127.92,0.8286809]
[1720145162405,100.0,127.95,127.92,0.8286809]
[1720145162607,7.8149,127.96,127.92,0.8286809]
[1720145162817,107.8144,127.97,127.92,0.8286809]
[1720145163313,7.8149,127.96,127.92,0.8286809]
[1720145163808,7.8141,127.98,127.92,0.8286809]
[1720145163995,107.8144,127.97,127.92,0.8286809]
[1720145164614,7.8163,127.94,127.92,0.8286809]
[1720145164822,107.8157,127.95,127.92,0.8286809]
[1720145165292,100.0,127.95,127.92,0.8286809]
[1720145165493,7.8167,127.93,127.92,0.8286809]
[1720145165707,7.8162,127.94,127.92,0.8286809]
[1720145166111,7.8154,127.96,127.92,0.8286809]
[1720145166400,107.8155,127.95,127.92,0.8286809]
[1720145166614,100.0,127.95,127.92,0.8286809]
[1720145166816,7.8149,127.96,127.92,0.8286809]
[1720145167930,8.1147425,127.96,127.92,0.8286809]
[1720145168227,107.8155,127.95,127.92,0.8286809]
[1720145168525,7.8161,127.94,127.92,0.8286809]
[1720145169114,107.8156,127.95,127.92,0.8286809]
[1720145169622,8.1147425,127.96,127.92,0.8286809]
[1720145169809,100.0,127.97,127.92,0.8286809]
[1720145170130,8.11514445,127.97,127.92,0.8286809]
[1720145170303,107.8143,127.97,127.92,0.8286809]
[1720145171437,15.92868146,127.99,127.92,0.8286809]
[1720145171607,8.11508146,127.99,127.92,0.8286809]
[1720145172012,100.0,127.97,127.92,0.8286809]
[1720145172504,108.11508146,127.99,127.92,0.8286809]
[1720145172707,7.8148,127.97,127.92,0.8286809]
[1720145173417,7.8137,127.98,127.92,0.8286809]
[1720145173614,7.8144,127.97,127.92,0.8286809]
[1720145174806,108.11508146,127.99,127.92,0.8286809]
[1720145174807,8.11508146,127.99,127.92,0.8286809]
[1720145175009,7.8139,127.98,127.92,0.8286809]
[1720145175233,7.8143,127.97,127.92,0.8286809]
[1720145175624,100.0,127.99,127.92,0.8286809]
[1720145175819,7.8145,127.97,127.92,0.8286809]
[1720145176229,7.8138,127.98,127.92,0.8286809]
[1720145176838,100.0,127.99,127.92,0.8286809]
[1720145177138,107.8131,127.99,127.92,0.8286809]
[1720145177814,7.8131,127.99,127.92,0.8286809]
[1720145178557,15.9295468,128.0,127.92,0.8286809]
[1720145179212,8.1169468,128.0,127.92,8.6458809]
[1720145179406,135.59,128.02,127.92,0.8286809]
[1720145179629,107.8118,128.02,127.94,19.5402]
[1720145179844,7.8126,128.0,127.92,0.8286809]
[1720145180030,7.8124,128.01,127.92,8.6457809]
[1720145180347,107.8114,128.02,127.93,7.8167]
[1720145180549,100.0,128.02,127.92,8.6458809]
[1720145180717,7.8125,128.0,127.92,0.8286809]
[1720145181106,7.812,128.01,127.92,8.6457809]
[1720145181315,8.11351648,128.03,127.92,0.8286809]
[1720145181533,7.8123,128.01,127.92,390.9286809]
[1720145181719,107.8114,128.02,127.93,7.8166]
[1720145181937,7.8114,128.02,127.92,390.9286809]
[1720145182237,7.8113,128.02,127.93,19.5414]
[1720145182445,7.8118,128.01,127.93,27.358]
[1720145182654,7.8125,128.0,127.92,390.9286809]
[1720145183563,7.8125,128.0,127.92,398.7458809]
[1720145183761,107.8118,128.02,127.93,7.8167]
[1720145184266,100.0,128.02,127.94,7.8158]
[1720145184443,107.8114,128.02,127.92,410.4707809]
[1720145184639,7.8125,128.0,127.92,418.2880809]
[1720145184839,107.8115,128.02,127.93,7.8165]
[1720145185349,100.0,128.02,127.92,418.2880809]
[1720145185572,7.812,128.01,127.93,7.8165]
[1720145185936,7.812,128.01,127.92,418.2879809]
[1720145186168,107.8114,128.02,127.93,7.8164]
[1720145186665,7.8114,128.02,127.94,7.816]
[1720145186880,7.8114,128.02,127.93,7.8162]
[1720145187254,8.11351648,128.03,127.95,7.8154]
[1720145187595,7.8105,128.04,127.95,7.8154]
[1720145187890,15.92281543,128.04,127.95,7.8154]
[1720145188179,7.8107,128.03,127.94,27.3557]
[1720145188887,7.8113,128.02,127.94,19.5396]
[1720145189194,108.11231543,128.04,127.94,19.5396]
[1720145189357,115.92241543,128.04,127.95,7.8155]
[1720145189558,7.8107,128.03,127.95,7.8155]
[1720145189758,7.8107,128.03,127.94,27.3556]
[1720145190266,7.8119,128.01,127.93,7.8167]
[1720145190983,7.8126,128.0,127.92,390.9286809]
[1720145191298,7.8119,128.01,127.92,398.7458809]
[1720145192889,7.8119,128.01,127.93,7.8166]
[1720145194892,7.8119,128.01,127.92,8.6459809]
[1720145195694,7.8119,128.01,127.93,7.8167]
[1720145195869,39.5519,128.01,127.93,7.8167]
[1720145197493,39.5519,128.01,127.92,8.6457809]
[1720145198900,8.11705074,128.02,127.94,7.816]
[1720145199563,15.92835074,128.02,127.94,7.816]
[1720145199974,15.92835074,128.02,127.93,27.3573]
[1720145200194,8.11705074,128.02,127.95,19.5383]
[1720145200489,7.8113,128.02,127.95,19.5383]
[1720145200668,7.8113,128.02,127.92,410.4711809]
[1720145200873,31.74,128.03,127.92,410.4711809]
[1720145200874,7.812,128.01,127.92,410.4711809]
[1720145201071,7.812,128.01,127.92,418.2880809]
[1720145201405,7.8127,128.0,127.92,410.4711809]
[1720145201579,39.552,128.01,127.92,418.2884809]
[1720145201892,39.552,128.01,127.93,7.8166]
[1720145202502,18.46002817,128.0,127.93,7.8166]
[1720145202699,18.46002817,127.99,127.92,418.2882809]
[1720145202898,18.46002817,127.98,127.92,418.2882809]
[1720145203200,18.46002817,127.97,127.92,390.9286809]
[1720145203381,18.46002817,127.96,127.92,0.8286809]
[1720145203581,151.2678,128.03,127.92,0.8286809]
[1720145203582,18.46002817,127.95,127.92,0.8286809]
[1720145203805,18.44045203,127.94,127.92,0.8286809]
[1720145204102,18.43123874,127.93,127.92,0.8286809]
[1720145205075,31.74,127.97,127.92,0.8286809]
[1720145205280,18.44415663,127.96,127.92,0.8286809]
[1720145205473,18.44415663,127.95,127.92,0.8286809]
[1720145205672,31.74,127.97,127.92,0.8286809]
[1720145206306,18.44841385,127.96,127.92,0.8286809]
[1720145206467,18.44841385,127.95,127.92,0.8286809]
[1720145206667,18.44841385,127.94,127.92,0.8286809]
[1720145206880,139.5544,127.97,127.92,0.8286809]
[1720145207078,18.44553232,127.96,127.92,0.8286809]
[1720145207282,18.44553232,127.95,127.92,0.8286809]
[1720145207508,18.44553232,127.96,127.92,0.8286809]
[1720145207705,18.44623108,127.95,127.92,0.8286809]
[1720145207910,107.8167,127.93,127.92,0.8286809]
[1720145208107,26.26293108,127.93,127.92,0.8286809]
[1720145208483,18.44623108,127.93,127.92,0.8286809]
[1720145208682,18.43308593,127.93,127.92,0.8286809]
[1720145209786,126.24978593,127.93,127.92,0.8286809]
[1720145209987,18.43308593,127.93,127.92,0.8286809]
[1720145210189,100.0,127.93,127.92,0.8286809]
[1720145210389,107.8167,127.93,127.92,0.8286809]
[1720145210588,157.99256681,127.93,127.92,0.8286809]
[1720145211921,150.17586681,127.93,127.92,0.8286809]
[1720145212294,50.17586681,127.93,127.92,0.8286809]
[1720145213019,157.99256681,127.93,127.92,0.8286809]
[1720145214205,18.43586681,127.93,127.92,0.8286809]
[1720145214420,107.8136,127.99,127.92,0.8286809]
[1720145214617,18.48667596,127.98,127.92,0.8286809]
[1720145214924,100.0,128.0,127.92,8.6457809]
[1720145215215,31.74,128.01,127.92,67.2910809]
[1720145215424,18.49936999,128.0,127.92,67.2910809]
[1720145215588,18.49909673,127.99,127.92,67.2910809]
[1720145215785,8.10960509,128.02,127.94,66.4597]
[1720145216012,100.0,128.05,127.96,7.8143]
[1720145216013,31.74,128.04,127.96,7.8143]
[1720145216223,118.51229385,128.03,127.94,74.2753]
[1720145216523,18.51047356,128.02,127.98,7.8136]
[1720145216815,31.74,128.04,127.97,7.8141]
[1720145217197,8.10867584,128.05,127.97,7.8141]
[1720145217898,15.91807584,128.05,127.96,19.536]
[1720145218415,8.10867584,128.05,127.97,7.8143]
[1720145218918,8.10867584,128.05,127.98,22.6018]
[1720145219120,15.91847584,128.05,127.98,22.6018]
[1720145219321,115.91847584,128.05,127.98,22.6018]
[1720145219617,7.81,128.04,127.98,6.6258]
[1720145219825,108.10867584,128.05,127.98,6.6258]
[1720145220038,18.5114819,128.04,127.98,6.6258]
[1720145220201,7.8101,128.04,127.98,6.6258]
[1720145220521,115.91827584,128.05,127.98,6.6258]
[1720145220819,7.8101,128.04,127.98,6.6258]
[1720145221020,7.8121,128.01,127.94,22.5587]
[1720145221225,100.0,128.03,127.94,22.5587]
[1720145221395,100.0,128.03,127.95,7.8154]
[1720145221590,107.8107,128.03,127.94,42.0984]
[1720145221792,7.8114,128.02,127.94,42.0984]
[1720145222415,107.812,128.01,127.94,22.5587]
[1720145222928,100.0,128.01,127.94,22.5587]
[1720145223222,107.8121,128.01,127.94,22.5587]
[1720145224220,100.0,127.97,127.92,0.8286809]
[1720145224400,100.0,127.99,127.92,0.8286809]
[1720145224608,100.0,127.97,127.92,0.8286809]
[1720145224815,100.0,127.95,127.92,0.8286809]
[1720145226224,7.8142,127.98,127.92,0.8286809]
[1720145226398,126.24679443,127.97,127.92,0.8286809]
[1720145226598,18.43388682,127.96,127.92,0.8286809]
[1720145226794,8.10638144,127.97,127.92,0.8286809]
[1720145227006,107.813,128.0,127.92,0.8286809]
[1720145227218,18.44037775,127.99,127.92,8.6458809]
[1720145227403,100.0,128.0,127.92,8.6458809]
[1720145227619,107.8126,128.0,127.92,0.8286809]
[1720145227805,7.8131,127.99,127.92,0.8286809]
[1720145228224,100.0,127.98,127.92,0.8286809]
[1720145228523,100.0,127.96,127.92,0.8286809]
[1720145229311,8.10440237,128.0,127.92,0.8286809]
[1720145229502,107.8132,127.99,127.92,0.8286809]
[1720145230131,100.0,127.97,127.92,0.8286809]
[1720145230312,107.8164,127.94,127.92,0.8286809]
[1720145230515,100.0,127.94,127.92,0.8286809]
[1720145230827,107.8167,127.94,127.92,0.8286809]
[1720145231308,100.0,127.94,127.92,0.8286809]
[1720145231718,107.8163,127.94,127.92,0.8286809]
[1720145233026,100.0,127.96,127.92,0.8286809]
[1720145233324,107.8166,127.94,127.92,0.8286809]
[1720145234226,7.8167,127.93,127.92,0.8286809]
[1720145234616,18.49005197,127.93,127.92,0.8286809]
[1720145234820,100.0,127.94,127.92,0.8286809]
[1720145235420,107.815,127.96,127.92,0.8286809]
[1720145236538,7.8156,127.95,127.92,0.8286809]
[1720145236713,100.0,127.93,127.92,0.8286809]
[1720145236916,107.8157,127.95,127.92,0.8286809]
[1720145237133,7.8161,127.94,127.92,0.8286809]
[1720145237339,107.8167,127.93,127.92,0.8286809]
[1720145238413,47.67751932,127.93,127.92,0.8286809]
[1720145238614,8.09081932,127.93,127.92,0.8286809]
[1720145238839,7.815,127.96,127.92,0.8286809]
[1720145239015,7.8161,127.95,127.92,0.8286809]
[1720145239217,31.77,127.96,127.92,0.8286809]
[1720145239733,39.5851,127.96,127.92,0.8286809]
[1720145240128,31.77,127.96,127.92,0.8286809]
[1720145241210,100.0,127.95,127.92,0.8286809]
[1720145241416,107.8157,127.95,127.92,0.8286809]
[1720145241939,100.0,127.95,127.92,0.8286809]
[1720145242150,107.8157,127.95,127.92,0.8286809]
[1720145242717,100.0,127.93,127.92,0.8286809]
[1720145242925,107.8167,127.93,127.92,0.8286809]
[1720145243162,100.0,127.93,127.92,0.8286809]
[1720145243942,100.0,127.95,127.92,0.8286809]
[1720145244322,107.8167,127.93,127.92,0.8286809]
[1720145244537,100.0,127.93,127.92,0.8286809]
[1720145245039,107.8167,127.93,127.92,0.8286809]
[1720145245339,100.0,127.93,127.92,0.8286809]
[1720145245942,107.8167,127.93,127.92,0.8286809]
[1720145246829,107.8157,127.95,127.92,0.8286809]
[1720145247044,7.8163,127.94,127.92,0.8286809]
[1720145247248,100.0,127.95,127.92,0.8286809]
[1720145247545,107.8155,127.95,127.92,0.8286809]
[1720145247751,7.8163,127.94,127.92,0.8286809]
[1720145248255,107.8157,127.95,127.92,0.8286809]
[1720145248923,100.0,127.93,127.92,0.8286809]
[1720145249550,7.8162,127.94,127.92,0.8286809]
[1720145249956,100.0,127.93,127.92,0.8286809]
[1720145250251,107.8167,127.93,127.92,0.8286809]
[1720145250948,100.0,127.93,127.92,0.8286809]
[1720145251145,7.8163,127.94,127.92,0.8286809]
[1720145251346,7.815,127.96,127.92,0.8286809]
[1720145251754,100.0,127.95,127.92,0.8286809]
[1720145252360,7.8157,127.95,127.92,0.8286809]
[1720145252534,107.8157,127.95,127.92,0.8286809]
[1720145252735,7.8157,127.95,127.92,0.8286809]
[1720145252956,107.8157,127.95,127.92,0.8286809]
[1720145253543,115.8948569,127.97,127.92,0.8286809]
[1720145254145,100.0,127.94,127.92,0.8286809]
[1720145255755,35.74,127.95,127.81,0.1]
[1720145255756,107.8235,127.82,127.81,0.1]
[1720145255932,100.0,127.85,127.81,0.1]
[1720145256435,100.0,127.83,127.81,0.1]
[1720145256941,7.8235,127.82,127.81,0.1]
[1720145257672,52.8235,127.82,127.81,0.1]
[1720145257851,7.8235,127.82,127.81,0.1]
[1720145258549,107.8229,127.83,127.81,0.1]
[1720145258747,7.8235,127.82,127.81,0.1]
[1720145260056,100.0,127.83,127.81,0.1]
[1720145260262,100.0,127.85,127.81,0.1]
[1720145260434,11.71975647,127.82,127.81,0.1]
[1720145260872,100.0,127.83,127.81,0.1]
[1720145261762,11.72658126,127.82,127.81,0.1]
[1720145261967,11.72638875,127.82,127.81,0.1]
[1720145262160,100.0,127.83,127.81,0.1]
[1720145263269,107.823,127.83,127.81,0.1]
[1720145263870,100.0,127.83,127.81,0.1]
[1720145264166,108.08742528,127.83,127.81,0.1]
[1720145264347,115.91042528,127.83,127.81,0.1]
[1720145264752,7.8235,127.82,127.81,0.1]
[1720145265057,108.08742528,127.83,127.81,0.1]
[1720145265249,8.08742528,127.83,127.81,0.1]
[1720145265565,100.0,127.85,127.81,0.1]
[1720145265771,100.0,127.83,127.81,0.1]
[1720145267384,7.8235,127.82,127.81,0.1]
[1720145267537,100.0,127.83,127.81,0.1]
[1720145267738,31.83,127.82,127.81,0.1]
[1720145268372,39.6535,127.82,127.81,0.1]
[1720145268575,31.83,127.82,127.81,0.1]
[1720145269852,108.08415845,127.85,127.81,0.1]
[1720145270070,11.74369677,127.82,127.81,0.1]
[1720145270289,11.74542359,127.82,127.81,0.1]
[1720145270445,100.0,127.85,127.81,0.1]
[1720145271772,100.0,127.85,127.79,8.09e-05]
[1720145271773,107.8247,127.8,127.79,8.09e-05]
[1720145271975,107.8247,127.8,127.71,0.1]
[1720145271976,100.0,127.72,127.71,0.1]
[1720145272152,11.74233727,127.72,127.71,0.1]
[1720145272350,11.74403942,127.72,127.71,0.1]
[1720145272648,31.83,127.73,127.71,0.1]
[1720145273180,43.57028068,127.73,127.71,0.1]
[1720145273354,11.74028068,127.72,127.71,0.1]
[1720145273671,111.74028068,127.72,127.71,0.1]
[1720145274061,107.8284,127.74,127.71,0.1]
[1720145274368,11.74039581,127.72,127.71,0.1]
[1720145274576,107.8284,127.74,127.71,0.1]
[1720145274753,11.74281723,127.72,127.71,0.1]
[1720145274958,107.8284,127.74,127.71,0.1]
[1720145275151,35.86,127.78,127.71,0.1]
[1720145275152,100.0,127.76,127.71,0.1]
[1720145275357,11.74283486,127.73,127.71,0.1]
[1720145275942,11.74283486,127.72,127.71,0.1]
[1720145276276,11.74283486,127.73,127.71,0.1]
[1720145276874,11.74283486,127.72,127.71,0.1]
[1720145277063,100.0,127.74,127.71,0.1]
[1720145277064,11.74283486,127.73,127.71,0.1]
[1720145277274,11.74283486,127.72,127.71,0.1]
[1720145277570,100.0,127.72,127.71,0.1]
[1720145279156,111.74632599,127.72,127.71,0.1]